bitfinex-derivatives/quotes_ETHF0:USTF0_20250816
["timestamp","ask_amount","ask_price","bid_price","bid_amount"]
[1755322641321,1.4771,4431.1,4431.0,22.0708]
[1755322642015,1.4771,4431.1,4431.0,21.8191]
[1755322642220,1.4771,4431.1,4431.0,21.1865]
[1755322642817,1.4771,4431.1,4431.0,22.0708]
[1755322643912,1.4771,4431.1,4431.0,21.0114]
[1755322644114,1.4771,4431.1,4431.0,21.644]
[1755322644309,1.4771,4431.1,4431.0,22.0608]
[1755322644914,1.2351,4431.1,4431.0,22.0608]
[1755322645219,0.8407,4431.1,4431.0,22.0608]
[1755322645422,3.2078,4431.4,4431.3,0.5845]
[1755322645618,4.6754,4431.4,4431.3,21.0104]
[1755322645814,4.6754,4431.4,4430.8,0.2517]
[1755322646015,0.584,4431.0,4430.9,21.4332]
[1755322646315,1.4676,4431.0,4430.9,21.4332]
[1755322646618,1.4676,4431.0,4430.9,22.0658]
[1755322647319,1.4676,4431.0,4430.9,21.649]
[1755322647818,1.4676,4431.0,4430.9,21.648]
[1755322648016,1.4676,4431.0,4430.9,20.7576]
[1755322649115,1.4676,4431.0,4430.9,21.648]
[1755322649619,0.8312,4431.0,4430.9,22.0648]
[1755322649815,4.039,4431.4,4431.3,1.4688]
[1755322650318,4.6754,4431.4,4431.3,1.4688]
[1755322650710,4.6754,4431.4,4431.3,1.2171]
[1755322652018,4.6754,4431.4,4430.9,1.44919383]
[1755322652318,1.208,4431.3,4431.2,0.6797]
[1755322652510,1.4676,4431.3,4431.2,1.4688]
[1755322652716,3.2078,4431.4,4431.2,1.4688]
[1755322652916,3.2078,4431.4,4431.3,22.0668]
[1755322655523,3.7794,4431.4,4431.3,22.0668]
[1755322656413,4.6754,4431.4,4431.3,1.2171]
[1755322656725,3.2078,4431.4,4431.3,21.8111]
[1755322656918,3.2078,4431.4,4431.3,22.0628]
[1755322657620,4.6754,4431.4,4431.3,22.0628]
[1755322657814,4.6754,4431.4,4431.3,20.594]
[1755322659326,0.1624,4430.6,4430.5,2.91799383]
[1755322659623,0.4096,4430.6,4430.5,23.51599383]
[1755322659825,0.6364,4430.9,4430.5,22.63169383]
[1755322660019,1.4676,4430.8,4430.7,1.4688]
[1755322660921,0.2472,4431.3,4430.7,1.4688]
[1755322661123,1.4676,4430.9,4430.8,21.0234]
[1755322661322,1.4676,4430.9,4430.8,21.2837]
[1755322662028,1.4676,4430.9,4430.8,21.656]
[1755322662724,1.4676,4430.9,4430.8,22.0728]
[1755322663326,1.4676,4430.9,4430.8,21.8211]
[1755322663830,1.4676,4430.9,4430.5,1.70089383]
[1755322663831,0.584,4430.9,4430.4,32.499]
[1755322664128,1.4676,4430.6,4430.5,21.8075]
[1755322664729,0.8312,4430.6,4430.5,1.4688]
[1755322664927,1.4676,4430.6,4430.5,22.0658]
[1755322666127,0.8312,4430.6,4430.5,22.0658]
[1755322666320,0.6364,4430.9,4430.5,22.0658]
[1755322666524,0.804,4430.9,4430.8,0.5845]
[1755322666725,0.804,4430.9,4430.8,22.0648]
[1755322666926,3.8494,4431.4,4430.8,21.1805]
[1755322667126,4.6754,4431.4,4431.3,1.4688]
[1755322667631,4.81860421,4431.4,4431.3,1.4688]
[1755322668525,4.81860421,4431.4,4431.3,1.2171]
[1755322668725,4.81860421,4431.4,4431.3,1.052]
[1755322668928,4.81860421,4431.4,4430.3,3.2078]
[1755322669127,0.843,4430.5,4430.4,22.0885]
[1755322669328,0.3434,4430.5,4430.4,1.2505]
[1755322669621,0.5978,4430.5,4430.4,23.53369383]
[1755322669826,0.5978,4430.8,4430.7,0.5987]
[1755322670023,1.4894,4430.8,4430.7,20.612]
[1755322670426,1.4894,4430.8,4430.3,3.2078]
[1755322670628,3.2078,4431.4,4430.3,3.2078]
[1755322670629,1.4894,4430.4,4430.3,3.2078]
[1755322670931,0.5886,4430.4,4430.3,20.61]
[1755322671131,0.5886,4430.4,4430.3,20.7857]
[1755322671430,1.4894,4430.4,4430.3,21.3008]
[1755322671831,1.4894,4430.4,4430.3,21.6984]
[1755322672732,1.4894,4430.4,4430.3,20.61]
[1755322673127,1.4894,4430.4,4430.3,21.3008]
[1755322673336,1.4894,4430.4,4430.3,21.6984]
[1755322673937,1.4894,4430.4,4429.5,32.7472]
[1755322674238,0.5978,4429.6,4429.5,33.3848]
[1755322674427,0.5886,4429.8,4429.7,0.5987]
[1755322674627,0.5886,4429.8,4429.7,22.1005]
[1755322675531,3.2078,4430.3,4429.8,0.6376]
[1755322675532,0.2544,4430.2,4429.8,0.6376]
[1755322675733,1.2273,4430.2,4430.1,1.4905]
[1755322676037,1.2273,4430.2,4430.1,22.1015]
[1755322676038,1.4894,4430.2,4430.1,22.1015]
[1755322676535,1.4894,4430.2,4430.1,21.8615]
[1755322676931,4.6972,4430.2,4430.1,21.8615]
[1755322677135,4.6972,4430.2,4430.1,20.611]
[1755322677732,4.6972,4430.2,4429.6,0.6518]
[1755322677937,0.5886,4429.8,4429.7,21.6934]
[1755322678137,1.4894,4429.8,4429.7,22.0955]
[1755322679336,1.4894,4429.8,4429.7,1.2505]
[1755322679536,1.4894,4429.8,4429.7,21.8665]
[1755322679739,1.4894,4429.8,4429.7,21.4689]
[1755322679929,1.4894,4429.8,4429.7,21.3068]
[1755322680331,1.4894,4429.8,4429.5,20.612]
[1755322680642,1.4894,4429.6,4429.5,21.3028]
[1755322681339,1.4894,4429.6,4429.5,21.7004]
[1755322681541,1.4894,4429.6,4429.5,20.612]
[1755322682039,1.4894,4429.6,4429.5,0.6908]
[1755322682242,1.4894,4429.6,4429.5,1.4905]
[1755322682631,1.4894,4429.6,4429.5,0.4366]
[1755322682828,1.4894,4429.6,4429.3,20.61]
[1755322683029,0.5886,4429.4,4429.3,20.61]
[1755322683236,1.4894,4429.4,4429.3,21.3008]
[1755322683440,1.4894,4429.4,4429.3,21.8605]
[1755322683636,1.4894,4429.4,4429.3,22.1005]
[1755322686040,1.2273,4429.4,4429.3,22.1005]
[1755322686230,0.2621,4429.7,4429.3,21.4487]
[1755322686539,1.44919383,4430.1,4429.3,21.4487]
[1755322686540,1.4894,4429.4,4429.3,21.4487]
[1755322686939,1.4894,4429.4,4429.3,22.1005]
[1755322687135,1.4894,4429.4,4429.3,20.7857]
[1755322687340,1.4894,4429.4,4429.3,20.61]
[1755322687542,0.5886,4429.4,4429.0,0.2542]
[1755322687736,1.4894,4429.1,4429.0,21.0299]
[1755322688341,1.4894,4429.1,4428.8,3.2078]
[1755322688656,1.4894,4428.4,4428.3,4.6983]
[1755322688939,1.2273,4428.4,4428.3,25.3013]
[1755322689136,0.843,4428.4,4428.3,25.3013]
[1755322689639,0.9008,4428.7,4428.4,0.8918]
[1755322689842,3.2078,4429.1,4428.6,1.4905]
[1755322690143,1.4894,4429.0,4428.9,0.4366]
[1755322690441,0.5886,4428.8,4428.7,20.602]
[1755322690740,1.4894,4428.7,4428.6,20.601]
[1755322691136,1.4894,4428.7,4428.6,22.0915]
[1755322691343,0.843,4429.0,4428.9,0.5987]
[1755322691641,1.2273,4429.0,4428.9,1.4905]
[1755322693041,1.4894,4429.0,4428.9,22.0905]
[1755322694045,1.4894,4429.0,4428.9,21.8505]
[1755322694543,1.4894,4429.0,4428.9,22.0905]
[1755322694938,1.4894,4429.0,4428.9,21.8505]
[1755322695650,2.93859383,4429.0,4428.9,21.0366]
[1755322695941,2.93859383,4429.0,4428.6,20.837]
[1755322696137,3.2078,4429.1,4428.4,0.00375896]
[1755322696138,1.4894,4428.5,4428.4,0.00375896]
[1755322696444,4.6972,4428.5,4428.4,0.00375896]
[1755322700137,4.6972,4428.5,4428.4,0.17085896]
[1755322700345,4.6972,4428.5,4428.4,1.23925896]
[1755322700542,4.6972,4428.5,4428.4,0.00375896]
[1755322706945,4.84626886,4428.5,4428.4,0.00375896]
[1755322709052,4.84626886,4428.5,4428.4,0.43375896]
[1755322709547,4.84626886,4428.5,4428.4,0.00375896]
[1755322709941,4.84626886,4428.5,4426.8,32.95842]
[1755322710139,1.0966,4427.5,4427.4,0.419]
[1755322710348,3.2078,4427.5,4427.4,1.4916]
[1755322710551,3.2078,4427.5,4427.4,4.4916]
[1755322710748,2.8095,4427.5,4427.4,4.4916]
[1755322711853,3.2078,4428.6,4428.5,0.3325]
[1755322712145,2.9423,4428.6,4428.5,2.30069383]
[1755322712346,2.9423,4428.6,4428.5,0.6199]
[1755322712550,3.192,4428.6,4428.5,0.6199]
[1755322713043,2.9423,4428.6,4428.5,0.5886]
[1755322713247,3.192,4428.6,4428.5,0.6199]
[1755322713447,2.9423,4428.6,4428.5,0.6199]
[1755322714050,3.192,4428.6,4428.5,0.6199]
[1755322714246,2.9423,4428.6,4428.5,0.6199]
[1755322714652,3.192,4428.6,4428.5,0.6199]
[1755322715055,0.2497,4428.9,4428.6,0.2874]
[1755322715257,0.2497,4428.9,4428.8,0.4716]
[1755322715554,3.2078,4429.1,4429.0,0.2155]
[1755322715748,3.2078,4429.1,4429.0,0.5029]
[1755322715946,3.2078,4429.1,4429.0,0.4716]
[1755322716153,3.6338,4429.1,4429.0,0.4716]
[1755322716354,4.6901,4429.1,4429.0,0.4716]
[1755322716958,0.6032,4428.6,4428.5,0.4716]
[1755322717252,4.6901,4428.6,4428.5,0.4716]
[1755322718158,3.4575,4428.6,4428.5,0.4716]
[1755322718354,3.4575,4428.6,4428.5,0.5029]
[1755322718554,3.2078,4428.6,4428.5,0.5029]
[1755322718756,3.4575,4428.6,4428.5,0.5029]
[1755322719657,3.2078,4428.6,4428.5,0.5029]
[1755322719860,0.8529,4429.1,4429.0,0.2155]
[1755322720059,1.4823,4429.1,4429.0,0.4716]
[1755322721554,3.2078,4429.3,4429.0,1.92079383]
[1755322721857,0.2497,4429.2,4429.1,0.4716]
[1755322722052,3.2078,4429.3,4429.1,0.2155]
[1755322722252,3.4575,4429.3,4429.2,0.5029]
[1755322722755,3.2078,4429.3,4429.2,0.5029]
[1755322723057,3.4575,4429.3,4429.2,0.5029]
[1755322723449,3.2078,4429.3,4429.2,0.5029]
[1755322723657,3.4575,4429.3,4429.2,0.4716]
[1755322723856,4.0607,4429.3,4429.2,0.4716]
[1755322724060,4.6901,4429.3,4429.2,0.4716]
[1755322725359,0.8529,4429.2,4429.1,0.2155]
[1755322725555,1.4823,4429.2,4429.1,0.4716]
[1755322726059,0.428,4428.6,4428.5,20.8665]
[1755322726254,1.0966,4428.6,4428.5,0.2155]
[1755322726454,1.4823,4428.6,4428.5,0.2155]
[1755322726661,1.4823,4428.6,4428.5,0.4716]
[1755322727063,1.0966,4428.6,4428.5,0.4716]
[1755322727255,0.8529,4428.6,4428.5,0.4716]
[1755322727657,1.0966,4428.6,4428.5,0.4716]
[1755322728056,1.4823,4428.6,4428.5,0.4716]
[1755322728861,0.6777,4428.6,4428.5,0.4716]
[1755322729055,3.4635,4429.3,4428.6,0.2441]
[1755322729265,3.8854,4429.3,4429.2,0.4543]
[1755322730162,3.8854,4429.3,4429.2,0.4858]
[1755322730163,3.4635,4429.3,4429.2,0.4858]
[1755322733763,4.6874,4429.3,4429.2,0.4543]
[1755322733957,4.4317,4429.3,4429.2,0.2102]
[1755322734159,4.4317,4429.3,4429.2,0.4543]
[1755322734563,4.6874,4429.3,4429.2,0.1598]
[1755322734863,4.6874,4429.3,4428.9,0.2441]
[1755322735165,0.5918,4429.1,4429.0,0.4039]
[1755322735359,1.0943,4428.8,4428.7,3.4519]
[1755322735565,1.0943,4428.8,4428.6,20.633]
[1755322735566,0.5918,4428.8,4428.6,20.633]
[1755322735763,1.4796,4428.7,4428.6,20.633]
[1755322736559,0.6321,4428.6,4428.3,0.2441]
[1755322736864,1.4796,4428.2,4428.1,3.2078]
[1755322737062,1.4796,4428.2,4427.2,0.0315]
[1755322737063,0.8878,4428.1,4427.3,20.641]
[1755322737360,1.4796,4427.4,4427.3,21.0953]
[1755322738666,1.4796,4427.4,4427.3,0.1598]
[1755322739257,1.4796,4427.4,4427.3,0.4543]
[1755322739568,1.4796,4427.3,4427.2,20.8532]
[1755322739768,1.4796,4427.3,4427.2,0.4543]
[1755322739964,0.641,4427.2,4427.1,20.641]
[1755322740266,1.4796,4427.2,4427.1,20.641]
[1755322740467,1.4796,4427.2,4427.1,20.8512]
[1755322740671,1.4796,4427.2,4427.1,21.0953]
[1755322741173,1.4796,4427.2,4427.1,21.0943]
[1755322741469,1.4796,4427.2,4427.1,20.7998]
[1755322741865,3.2078,4427.8,4427.6,0.2102]
[1755322742171,0.2557,4427.7,4427.6,0.4543]
[1755322742569,0.4317,4427.7,4427.6,0.4543]
[1755322743169,1.4796,4427.7,4427.6,0.4543]
[1755322743368,0.6776,4427.7,4427.6,0.4543]
[1755322743565,3.2078,4427.8,4427.6,0.4543]
[1755322743864,0.2557,4428.4,4428.3,0.4543]
[1755322744066,0.2557,4428.4,4428.3,21.0943]
[1755322744270,1.4796,4428.4,4428.3,21.0943]
[1755322744969,1.4796,4428.4,4428.3,0.4543]
[1755322745365,1.4796,4428.4,4428.3,21.0963]
[1755322746574,0.2557,4428.4,4428.3,21.0963]
[1755322746773,0.8475,4428.4,4428.3,21.0963]
[1755322747174,0.2557,4428.4,4428.3,21.0963]
[1755322747376,1.3097,4428.8,4428.7,0.2102]
[1755322747674,3.4635,4429.0,4428.9,0.2102]
[1755322747870,3.4635,4429.0,4428.5,0.45125]
[1755322748074,1.4796,4428.7,4428.6,21.0913]
[1755322750071,0.8475,4428.7,4428.6,21.0913]
[1755322750272,0.8475,4428.7,4428.6,21.54254]
[1755322750273,0.2557,4428.7,4428.6,21.54254]
[1755322750479,0.2557,4428.7,4428.6,21.1228]
[1755322751570,3.4635,4429.5,4428.6,20.8787]
[1755322751772,4.6874,4429.5,4429.4,0.2102]
[1755322752076,4.6874,4429.5,4429.4,0.4543]
[1755322752680,4.6874,4429.5,4429.4,0.1598]
[1755322753778,4.6874,4429.5,4429.4,0.4039]
[1755322754373,4.6874,4429.5,4429.3,20.626]
[1755322754575,2.92879383,4429.4,4429.3,20.626]
[1755322755684,2.92879383,4429.4,4428.8,0.2441]
[1755322755982,2.92879383,4429.4,4428.5,3.2078]
[1755322755983,1.4796,4428.6,4428.5,0.4543]
[1755322756188,1.4796,4428.6,4428.5,21.0703]
[1755322756382,0.5918,4428.6,4428.5,0.2102]
[1755322756584,1.4796,4428.6,4428.5,21.0693]
[1755322756775,0.5918,4428.3,4428.2,0.2441]
[1755322756979,1.4796,4428.3,4428.2,20.8581]
[1755322757181,1.4796,4428.3,4428.2,20.614]
[1755322758285,1.4796,4428.3,4428.2,21.0683]
[1755322759187,1.4796,4428.3,4428.2,20.614]
[1755322759785,1.4796,4428.3,4428.2,21.0339]
[1755322759987,1.4796,4428.3,4428.2,21.084]
[1755322760286,0.2557,4428.3,4428.2,21.084]
[1755322761089,0.6642,4428.3,4428.2,21.084]
[1755322761289,1.4445,4428.3,4428.2,21.084]
[1755322761791,0.2415,4426.2,4425.5,5.24323292]
[1755322762088,4.65699383,4425.6,4424.1,0.10171445]
[1755322762283,1.44919383,4424.4,4424.1,0.10171445]
[1755322762479,3.2078,4424.6,4424.1,0.10171445]
[1755322762480,0.33142175,4424.3,4424.2,0.6243]
[1755322762685,3.2078,4424.6,4424.2,2.96083387]
[1755322762885,3.2078,4424.6,4424.5,2.07349383]
[1755322763695,3.56075333,4424.6,4424.5,2.32459383]
[1755322764395,5.00994716,4424.6,4424.3,0.2511]
[1755322764597,4.50637999,4424.5,4424.3,0.2511]
[1755322764788,0.35295333,4424.4,4424.1,0.10171445]
[1755322764989,0.35295333,4424.4,4424.3,0.5047]
[1755322765189,4.50637999,4424.5,4424.1,0.10171445]
[1755322765395,0.35295333,4424.4,4424.1,0.10171445]
[1755322765895,3.2078,4424.6,4424.1,0.10171445]
[1755322765896,7.36122666,4424.6,4424.1,0.10171445]
[1755322766091,0.33521632,4424.5,4424.1,0.10171445]
[1755322766293,4.15342666,4424.2,4424.1,0.35281445]
[1755322767095,4.15342666,4424.2,4424.1,0.60641445]
[1755322767594,3.2078,4424.6,4424.1,0.47241445]
[1755322767797,3.2078,4424.6,4424.2,0.8754]
[1755322767997,3.2078,4424.6,4424.3,0.8754]
[1755322768388,3.2078,4424.6,4424.4,0.45167]
[1755322768594,3.2078,4424.6,4424.5,0.8754]
[1755322769700,3.2078,4425.1,4424.8,0.45163]
[1755322769895,3.2078,4425.1,4424.9,0.5047]
[1755322770093,3.2078,4425.1,4425.0,0.8754]
[1755322770298,3.53742002,4425.1,4425.0,0.8754]
[1755322770501,3.2078,4425.1,4425.0,0.8754]
[1755322771299,3.2078,4425.1,4424.3,0.8754]
[1755322771700,4.15342666,4424.9,4424.4,0.5047]
[1755322771893,3.2078,4424.5,4424.3,0.2511]
[1755322772097,3.2078,4424.5,4424.4,0.5047]
[1755322772297,3.2078,4424.5,4424.4,0.8754]
[1755322773400,3.2078,4425.2,4424.5,0.8754]
[1755322773601,0.31601057,4425.1,4424.7,0.45163]
[1755322773800,3.2078,4425.2,4424.9,0.8754]
[1755322774000,3.2078,4425.2,4425.0,1.4663]
[1755322774001,0.31602024,4425.1,4425.0,1.4663]
[1755322774506,3.2078,4425.2,4425.0,1.4663]
[1755322774703,3.2078,4425.2,4425.1,0.5047]
[1755322774906,3.2078,4425.2,4425.1,0.2511]
[1755322775103,3.2078,4425.2,4425.1,0.5047]
[1755322776808,3.2078,4425.2,4425.1,0.2511]
[1755322777505,3.2078,4425.2,4425.1,1.4663]
[1755322777700,3.51011582,4425.2,4425.1,1.4663]
[1755322777911,3.2078,4425.2,4425.1,1.4663]
[1755322778111,3.51011546,4425.2,4425.1,1.4663]
[1755322778608,3.2078,4425.2,4425.1,1.4663]
[1755322779405,7.36122666,4425.2,4424.7,0.45164]
[1755322779607,7.36122666,4425.2,4425.1,0.5909]
[1755322779800,7.65378191,4425.2,4424.2,0.5047]
[1755322780001,7.65378191,4425.2,4424.6,1.4663]
[1755322780002,3.2078,4424.7,4424.6,1.4663]
[1755322783006,3.2078,4424.7,4424.1,0.10171445]
[1755322783207,0.29289583,4424.6,4424.2,0.2511]
[1755322783409,0.29289583,4424.5,4424.4,0.2511]
[1755322783606,0.29289583,4424.6,4424.4,0.2536]
[1755322783808,0.29289583,4424.5,4424.4,0.5047]
[1755322784008,0.29289583,4424.6,4424.4,0.2536]
[1755322784204,7.36122666,4424.7,4424.4,0.4199]
[1755322784409,0.29308761,4424.6,4424.4,0.1663]
[1755322784610,3.2078,4424.7,4424.6,1.4663]
[1755322784810,3.4878996,4424.7,4424.6,1.4663]
[1755322785915,3.9395396,4424.7,4424.6,1.4663]
[1755322786112,3.9395396,4424.7,4424.1,0.10171445]
[1755322786113,0.45169,4424.2,4424.1,1.56801445]
[1755322786318,3.2078,4424.2,4424.1,1.64901445]
[1755322786512,3.65944,4424.7,4424.6,0.5909]
[1755322786818,3.2078,4424.7,4424.6,1.4663]
[1755322787215,3.9787,4424.7,4424.6,0.4174]
[1755322787414,0.45168,4424.3,4424.2,1.4663]
[1755322787612,0.98108,4424.3,4424.2,1.4663]
[1755322787809,1.22258,4424.3,4424.2,1.0956]
[1755322788211,1.22258,4424.3,4424.2,1.4663]
[1755322788615,0.45168,4424.3,4424.2,1.4663]
[1755322789424,0.45168,4424.4,4424.2,1.91798]
[1755322789715,0.45168,4424.4,4424.3,1.4802]
[1755322790117,1.13017107,4424.4,4424.3,1.4802]
[1755322791018,0.67849107,4424.4,4424.3,1.93188]
[1755322791212,0.45166,4424.6,4424.5,1.54616]
[1755322791418,1.30311006,4424.6,4424.5,1.93186]
[1755322791720,1.71780006,4424.6,4424.5,1.4802]
[1755322792218,0.85145006,4424.6,4424.4,0.45167]
[1755322792415,0.45168,4424.3,4424.2,1.2155]
[1755322792619,0.67969888,4424.4,4424.2,1.66718]
[1755322792825,0.67969888,4424.3,4424.2,1.66718]
[1755322793024,0.67969888,4424.3,4424.2,1.93188]
[1755322797433,0.67969888,4424.3,4424.2,1.54618]
[1755322797629,1.46159888,4424.3,4424.2,1.93188]
[1755322797829,0.67969888,4424.3,4424.2,1.93188]
[1755322798027,0.67969888,4424.3,4424.2,5.13968]
[1755322798621,0.67969888,4424.3,4424.2,6.5953589]
[1755322799021,0.4147,4424.6,4424.5,1.02246]
[1755322799229,1.62203712,4424.6,4424.5,22.20846]
[1755322799729,1.62203712,4424.6,4424.5,23.11786]
[1755322799932,1.62203712,4424.6,4424.5,22.6662]
[1755322800331,0.84013712,4424.6,4424.5,23.11786]
[1755322800530,0.57423712,4424.6,4424.5,24.5735389]
[1755322800733,0.45161,4425.1,4425.0,0.8355]
[1755322801031,1.92413,4424.8,4424.7,3.8938]
[1755322801226,1.92413,4424.8,4424.7,3.6291]
[1755322802023,1.92413,4424.8,4424.7,4.3023]
[1755322802225,1.66033,4424.8,4424.7,4.688]
[1755322802934,3.2078,4425.2,4424.7,4.23023]
[1755322803134,1.04341,4425.0,4424.9,0.5708]
[1755322803336,1.66031,4425.0,4424.9,1.4802]
[1755322803531,0.5918,4425.0,4424.9,1.4802]
[1755322803735,0.1672,4425.0,4424.9,1.4802]
[1755322803936,0.6169,4425.3,4424.9,0.5708]
[1755322804136,0.45161,4425.1,4425.0,1.4802]
[1755322804435,0.45159,4425.3,4425.1,1.4802]
[1755322804633,1.41059,4425.3,4425.2,22.6542]
[1755322804829,4.41222776,4425.9,4425.6,0.4028]
[1755322805029,3.375,4425.9,4425.8,1.4802]
[1755322805327,4.0493,4425.9,4425.8,1.4802]
[1755322805528,4.0493,4425.9,4425.8,21.171]
[1755322805529,4.6803,4425.9,4425.8,21.171]
[1755322805725,0.45153,4425.8,4425.6,0.45154]
[1755322805931,0.4147,4425.4,4425.3,0.4028]
[1755322806130,0.5918,4425.4,4425.2,0.45158]
[1755322806333,0.959,4425.3,4425.2,1.93178]
[1755322806531,1.2087,4425.3,4424.9,0.45162]
[1755322806734,0.3672,4425.0,4424.9,0.4028]
[1755322806932,1.6603,4425.2,4425.1,1.4802]
[1755322807237,0.959,4425.2,4425.1,1.4802]
[1755322807434,4.4165,4425.9,4425.8,0.1623]
[1755322807630,4.4165,4425.9,4425.8,0.686]
[1755322807835,4.86802,4425.9,4425.8,0.686]
[1755322808139,4.86802,4425.9,4425.8,1.4802]
[1755322808634,3.2078,4425.9,4425.8,1.4802]
[1755322809137,3.2078,4426.4,4426.3,1.4802]
[1755322809439,3.375,4426.4,4426.3,1.4802]
[1755322809634,3.2078,4426.9,4426.8,0.5708]
[1755322809837,3.2078,4426.9,4426.8,1.4802]
[1755322810030,3.2078,4426.9,4426.8,2.9358789]
[1755322810236,3.2078,4426.9,4426.8,1.4802]
[1755322810435,4.4165,4426.9,4426.8,1.4802]
[1755322810638,4.4165,4426.9,4426.8,1.93163]
[1755322810840,4.1668,4426.9,4426.8,1.93163]
[1755322811336,0.959,4426.9,4426.8,1.93163]
[1755322811539,0.5918,4426.9,4426.8,1.93163]
[1755322811741,0.6169,4427.2,4426.8,1.02223]
[1755322811940,1.2087,4427.2,4427.1,1.4802]
[1755322812236,3.375,4427.5,4427.4,1.4802]
[1755322812443,4.4165,4427.5,4427.4,1.4802]
[1755322812742,4.1668,4427.5,4427.4,1.4802]
[1755322812942,4.4165,4427.5,4427.4,1.4802]
[1755322813839,4.6803,4427.5,4427.4,1.4802]
[1755322814349,4.4165,4427.5,4427.4,1.4802]
[1755322814840,4.6803,4427.5,4427.3,21.148]
[1755322815041,1.4725,4427.4,4427.3,21.148]
[1755322816149,1.4725,4427.4,4427.3,21.407]
[1755322817145,1.4725,4427.4,4427.3,22.2425]
[1755322818142,1.2087,4427.4,4426.6,0.259]
[1755322818344,1.0394,4426.1,4426.0,0.8385]
[1755322818547,0.1625,4426.1,4426.0,23.05101]
[1755322818739,3.65929,4426.2,4426.1,0.9038]
[1755322818946,3.65929,4426.2,4426.1,1.4833]
[1755322819338,4.86699,4426.2,4426.1,1.4833]
[1755322820252,4.86699,4426.2,4426.1,21.6825]
[1755322820253,4.4155,4426.2,4426.1,21.6825]
[1755322820454,4.4155,4426.8,4426.7,0.5795]
[1755322820755,4.4155,4426.8,4426.7,1.4833]
[1755322821354,4.6654,4426.8,4426.7,1.4833]
[1755322823051,3.3693,4426.8,4426.7,1.0914]
[1755322823257,4.4155,4426.8,4426.7,1.4833]
[1755322823450,4.6654,4426.8,4426.7,1.4833]
[1755322824154,3.2078,4426.8,4426.7,1.4833]
[1755322824854,3.2078,4427.3,4427.2,1.4833]
[1755322825053,3.3693,4427.3,4427.2,1.4833]
[1755322825554,4.1694,4427.3,4427.2,1.0914]
[1755322825753,4.6654,4427.3,4427.2,1.0914]
[1755322826458,4.6654,4427.3,4427.0,21.088]
[1755322826666,5.60483024,4427.1,4427.0,21.088]
[1755322826855,4.73513024,4427.1,4426.6,0.2518]
[1755322827056,1.4576,4426.7,4426.6,0.2518]
[1755322827360,1.4576,4426.7,4426.6,1.0914]
[1755322827663,1.90904,4426.7,4426.6,1.4833]
[1755322828560,0.45144,4426.7,4426.6,1.4833]
[1755322828757,0.87684,4426.7,4426.6,1.4833]
[1755322828961,1.41304,4426.7,4426.6,1.4833]
[1755322829864,1.41304,4426.7,4425.7,4.14723024]
[1755322829865,8.35493024,4426.7,4424.3,3.8515]
[1755322830165,1.20442776,4428.3,4424.3,3.8515]
[1755322830166,0.834,4425.5,4425.4,0.5795]
[1755322830463,1.2077,4425.5,4425.4,1.4833]
[1755322831164,3.2078,4425.7,4425.6,0.5795]
[1755322831463,3.2078,4425.7,4425.6,1.4833]
[1755322831962,4.4155,4425.7,4425.6,1.4833]
[1755322832266,4.4155,4425.7,4425.6,0.2518]
[1755322832566,1.2077,4425.3,4425.2,22.2114]
[1755322832956,1.2077,4425.3,4425.2,22.6033]
[1755322834063,1.2077,4425.3,4424.2,0.45169]
[1755322834273,1.2077,4425.0,4424.9,1.4833]
[1755322834459,4.4155,4425.0,4424.9,1.4833]
[1755322834659,4.6654,4425.0,4424.9,1.0914]
[1755322835059,4.4155,4425.0,4424.9,1.4833]
[1755322835360,3.2078,4425.0,4424.9,1.4833]
[1755322836163,3.7957,4425.0,4424.9,1.4833]
[1755322836363,3.3693,4425.0,4424.9,1.4833]
[1755322836867,3.2078,4425.0,4424.9,1.4833]
[1755322843270,3.2078,4425.0,4424.9,1.93492]
[1755322843470,3.2078,4425.5,4425.4,1.4833]
[1755322843770,3.2078,4425.5,4425.4,22.5573]
[1755322844074,3.3693,4425.5,4425.4,22.5573]
[1755322844374,3.743,4425.5,4425.4,22.5573]
[1755322844574,4.1694,4425.5,4425.4,22.5573]
[1755322844973,4.4155,4425.5,4425.4,22.5573]
[1755322845169,3.7957,4425.5,4425.4,22.1654]
[1755322845474,3.2078,4425.5,4425.4,22.5573]
[1755322845668,4.1694,4425.5,4425.4,22.5573]
[1755322845868,4.4155,4425.5,4425.4,22.5573]
[1755322846776,3.7957,4425.5,4425.4,22.5573]
[1755322846971,3.2078,4425.5,4425.4,22.5573]
[1755322847277,3.2078,4426.0,4425.9,1.93482]
[1755322847471,3.2078,4426.0,4425.9,22.99182]
[1755322849974,3.2078,4426.0,4425.9,25.88156012]
[1755322850981,3.2078,4426.6,4426.1,1.12875]
[1755322851280,3.6396,4426.6,4426.5,1.4986]
[1755322851481,3.6396,4426.6,4426.5,22.5346]
[1755322851779,3.2078,4426.6,4426.5,22.5346]
[1755322853382,3.2078,4426.6,4426.5,25.5352867]
[1755322854270,3.2078,4427.1,4427.0,1.95001]
[1755322854470,3.2078,4427.1,4427.0,22.98001]
[1755322856682,3.4699,4427.1,4427.0,22.98001]
[1755322859983,3.2078,4427.1,4427.0,24.435644]
[1755322860184,3.2078,4427.1,4427.0,27.39375679]
[1755322863489,4.1966,4427.1,4427.0,5.72015679]
[1755322863684,0.2621,4426.5,4426.1,0.5051]
[1755322863987,1.4835,4426.1,4425.5,1.455634]
[1755322864186,1.4835,4426.1,4426.0,53.511]
[1755322864790,4.6913,4426.1,4426.0,53.511]